bitfinex/quotes_ETHUSD_20250525
["timestamp","ask_amount","ask_price","bid_price","bid_amount"]
[1748188056281,0.05000463,2500.2,2500.1,0.02]
[1748188056485,1.41169074,2500.2,2500.1,0.02]
[1748188056884,1.36168611,2500.2,2500.1,0.02]
[1748188057044,5.35268611,2500.2,2500.1,0.02]
[1748188057247,1.36168611,2500.2,2500.1,0.02]
[1748188057687,3.991,2500.3,2500.1,0.02]
[1748188059689,3.992,2500.2,2500.1,0.02]
[1748188059894,0.9743,2500.5,2500.1,0.02]
[1748188060110,12.64355814,2500.4,2500.1,0.02]
[1748188060411,0.9743,2500.3,2500.1,0.02]
[1748188060620,1.40679187,2500.2,2500.1,0.02]
[1748188061395,1.35678565,2500.2,2500.1,0.02]
[1748188061608,3.992,2500.3,2500.1,0.02]
[1748188062383,8.60155651,2500.4,2500.1,0.02]
[1748188062595,0.9209,2500.5,2500.1,0.02]
[1748188062596,3.992,2500.3,2500.1,0.02]
[1748188062834,0.9209,2500.5,2500.1,0.02]
[1748188063017,3.992,2500.4,2500.1,0.02]
[1748188063184,0.49129,2500.3,2500.1,0.02]
[1748188064392,3.992,2500.2,2500.1,0.02]
[1748188070547,4.9688,2500.2,2500.1,0.02]
[1748188072844,0.9768,2500.2,2500.1,0.02]
[1748188073044,4.9688,2500.2,2500.1,0.02]
[1748188073244,6.41303208,2500.2,2500.1,0.02]
[1748188075730,6.7937064,2500.2,2500.1,0.02]
[1748188076316,6.8437113,2500.2,2500.1,0.02]
[1748188077052,7.3937113,2500.2,2500.1,0.02]
[1748188077419,7.3437064,2500.2,2500.1,0.02]
[1748188077620,6.7937064,2500.2,2500.1,0.02]
[1748188078021,2.8017064,2500.2,2500.1,0.02]
[1748188078215,6.7937064,2500.2,2500.1,0.02]
[1748188078752,7.81999571,2500.2,2500.1,0.02]
[1748188080152,3.82799571,2500.2,2500.1,0.02]
[1748188080357,6.36876363,2500.2,2500.1,0.02]
[1748188081760,0.9698,2500.0,2499.1,0.02]
[1748188081943,8.60155651,2499.5,2499.1,0.02]
[1748188082129,0.9698,2499.3,2499.1,0.02]
[1748188082335,0.49628,2499.2,2499.1,0.02]
[1748188082735,4.48928,2499.2,2499.1,0.02]
[1748188082934,3.993,2499.2,2499.1,0.02]
[1748188083723,12.59455651,2499.2,2499.1,0.02]
[1748188084071,0.9698,2499.2,2499.1,0.02]
[1748188084380,4.9628,2499.2,2499.1,0.02]
[1748188084545,5.49714743,2499.2,2499.1,0.02]
[1748188085778,14.09870394,2499.2,2499.1,0.02]
[1748188086447,14.64870394,2499.2,2499.1,0.02]
[1748188087254,15.02937826,2499.2,2499.1,0.02]
[1748188088073,0.91502175,2499.2,2499.1,0.02]
[1748188088385,8.98223083,2499.2,2499.1,0.02]
[1748188088544,10.51093083,2499.2,2499.1,0.02]
[1748188088744,10.13025651,2499.2,2499.1,0.02]
[1748188089292,14.12325651,2499.2,2499.1,0.02]
[1748188089897,14.50393083,2499.2,2499.1,0.02]
[1748188090083,4.55152768,2499.1,2498.1,0.02]
[1748188090296,0.9382,2498.5,2498.1,0.02]
[1748188090484,3.994,2498.4,2498.1,0.02]
[1748188090888,4.04404187,2498.4,2498.1,0.02]
[1748188091302,3.994,2498.4,2498.1,0.02]
[1748188091459,10.08975651,2498.2,2498.1,0.02]
[1748188091664,8.60155651,2497.6,2497.1,0.02]
[1748188091864,5.4822,2497.6,2497.1,0.02]
[1748188092083,0.9382,2497.6,2497.1,0.02]
[1748188092288,0.9382,2497.8,2497.2,0.2404]
[1748188092490,3.994,2497.8,2497.2,0.25061281]
[1748188092820,0.9382,2498.6,2497.6,8.2404]
[1748188093099,4.94897565,2498.5,2497.6,8.2404]
[1748188093479,3.995,2498.4,2497.6,8.2404]
[1748188093800,12.59655651,2498.4,2497.6,0.2404]
[1748188094006,0.55,2498.3,2497.6,0.2404]
[1748188094216,0.9382,2498.0,2497.5,1.996328]
[1748188094509,0.95397565,2497.9,2497.4,5.032]
[1748188094710,3.995,2497.8,2497.4,5.032]
[1748188095194,12.59655651,2497.8,2497.4,5.032]
[1748188095396,0.55,2497.7,2497.1,0.02]
[1748188095596,9.15155651,2497.5,2497.1,0.02]
[1748188097199,0.55,2497.5,2497.1,0.02]
[1748188097905,9.15155651,2497.5,2497.1,0.02]
[1748188098236,8.60155651,2497.2,2497.1,0.02]
[1748188098535,0.9626,2497.4,2497.1,0.02]
[1748188098835,5.00741565,2497.3,2497.1,0.02]
[1748188099022,1.01141565,2497.3,2497.1,0.02]
[1748188099222,4.546,2497.2,2497.1,0.02]
[1748188099622,0.55,2497.2,2497.1,0.02]
[1748188099823,4.546,2497.2,2497.1,0.02]
[1748188101530,9.56415651,2497.4,2497.1,0.02]
[1748188101855,3.996,2497.3,2497.1,0.02]
[1748188102068,1.35601565,2497.2,2497.1,0.02]
[1748188103062,3.996,2497.2,2497.1,0.02]
[1748188103198,0.9626,2497.4,2497.1,0.02]
[1748188103399,3.996,2497.2,2497.1,0.02]
[1748188105458,0.9069,2497.7,2497.1,0.02]
[1748188105847,3.997,2497.6,2497.1,0.02]
[1748188106071,0.49039,2497.5,2497.1,0.02]
[1748188108045,9.15155651,2497.4,2497.1,0.02]
[1748188109049,0.95696673,2497.3,2497.1,0.02]
[1748188109381,0.9069,2497.3,2497.1,0.02]
[1748188110651,0.49039,2497.5,2497.1,0.02]
[1748188110950,3.997,2497.4,2497.1,0.2604]
[1748188111577,0.55,2497.7,2497.1,0.2604]
[1748188111776,0.9069,2497.4,2497.1,0.02]
[1748188112459,0.9069,2497.7,2497.2,0.2404]
[1748188112787,1.86087565,2497.9,2497.2,0.2404]
[1748188113086,3.997,2497.6,2497.2,0.2404]
[1748188113276,3.997,2497.6,2497.1,0.02]
[1748188114059,8.60155651,2497.4,2497.1,0.02]
[1748188114467,0.05006539,2497.3,2497.1,0.02]
[1748188114976,8.60155651,2497.4,2497.1,0.02]
[1748188115290,1.05591104,2497.3,2497.1,0.02]
[1748188115499,1.4606,2497.2,2497.1,0.02]
[1748188115793,3.997,2497.2,2497.1,0.02]
[1748188117100,1.00584565,2497.3,2497.1,0.02]
[1748188117267,3.997,2497.2,2497.1,0.02]
[1748188118818,0.37944375,2497.6,2497.1,0.02]
[1748188119115,0.37944375,2497.6,2497.2,0.2409]
[1748188119714,3.997,2497.5,2497.2,0.2409]
[1748188121503,0.37944375,2497.6,2497.2,0.2409]
[1748188121808,1.5156,2497.3,2497.1,0.02]
[1748188122003,3.997,2497.2,2497.1,0.02]
[1748188122190,4.37644375,2497.2,2497.1,0.02]
[1748188122613,0.37944375,2497.2,2497.1,0.02]
[1748188122771,0.37944375,2497.2,2497.1,0.2609]
[1748188123496,3.997,2497.4,2497.1,0.2609]
[1748188123660,0.43764438,2497.3,2497.1,0.02]
[1748188124103,0.48770877,2497.3,2497.1,0.02]
[1748188124977,0.43764438,2497.3,2497.1,0.02]
[1748188125373,0.48770878,2497.3,2497.1,0.02]
[1748188125695,0.37944375,2497.2,2497.1,0.02]
[1748188126367,3.997,2497.3,2497.1,0.02]
[1748188129129,0.38168351,2497.4,2497.1,0.02]
[1748188129298,3.997,2497.3,2497.1,0.02]
[1748188129603,0.38168351,2497.4,2497.1,0.02]
[1748188129981,3.997,2497.3,2497.1,0.02]
[1748188130310,0.38168351,2497.2,2497.1,0.02]
[1748188132299,0.38168351,2497.2,2497.1,0.2609]
[1748188134519,0.93504835,2497.4,2497.1,0.2609]
[1748188134700,3.997,2497.4,2497.1,0.2609]
[1748188135393,0.05005866,2497.6,2497.1,0.2609]
[1748188135572,3.997,2497.4,2497.1,0.02]
[1748188135774,4.04706332,2497.4,2497.1,0.02]
[1748188135977,3.997,2497.4,2497.1,0.02]
[1748188136217,0.87005447,2497.3,2497.1,0.02]
[1748188137573,0.38197932,2497.2,2497.1,0.02]
[1748188138298,1.30427932,2497.2,2497.1,0.02]
[1748188138506,1.35434197,2497.2,2497.1,0.02]
[1748188138822,0.38197932,2497.2,2497.1,0.02]
[1748188139141,0.38197932,2497.2,2497.1,0.2609]
[1748188140026,3.997,2497.5,2497.1,0.2609]
[1748188140226,4.87649093,2497.5,2497.1,0.2609]
[1748188141939,5.25847025,2497.5,2497.1,0.2609]
[1748188142654,4.3215654,2497.2,2496.2,0.2409]
[1748188142957,4.3215654,2496.8,2496.2,0.2409]
[1748188143098,3.997,2496.7,2496.2,5.2279]
[1748188144280,4.3215654,2496.6,2496.2,5.2279]
[1748188144396,5.29093781,2496.6,2496.2,4.987]
[1748188144593,5.2408654,2496.6,2496.2,4.987]
[1748188144912,0.96435802,2496.5,2496.2,4.987]
[1748188146294,9.4693,2496.0,2494.6,6.25573938]
[1748188146493,8.64966498,2495.5,2494.6,6.25573938]
[1748188146699,0.05010466,2495.4,2494.6,6.25573938]
[1748188146898,8.64966498,2495.5,2495.1,0.02]
[1748188146899,3.997,2495.3,2495.1,0.02]
[1748188149405,10.11896498,2495.2,2495.1,0.02]
[1748188149741,14.11596498,2495.2,2495.1,0.02]
[1748188150300,22.11596498,2495.2,2495.1,0.02]
[1748188150558,26.12365975,2495.2,2495.1,0.02]
[1748188150757,25.22477041,2495.2,2495.1,0.02]
[1748188151245,25.22577041,2495.2,2495.1,0.02]
[1748188151996,0.55,2495.0,2494.9,2.56809426]
[1748188152240,1.4178,2495.0,2494.9,2.56809426]
[1748188152426,1.4178,2495.0,2494.5,3.1607314]
[1748188152427,9.19966498,2494.6,2494.5,3.1607314]
[1748188152613,14.06546498,2494.6,2494.5,3.1607314]
[1748188152813,10.06746498,2494.6,2494.5,3.1607314]
[1748188153015,3.999,2494.6,2494.5,3.1607314]
[1748188153516,4.549,2494.6,2494.5,3.1607314]
[1748188153846,0.4549,2494.6,2494.5,3.1607314]
[1748188154144,1.80958,2494.9,2494.5,3.1607314]
[1748188154376,0.55,2495.1,2494.5,3.1607314]
[1748188154510,3.999,2494.8,2494.5,3.1607314]
[1748188155318,3.999,2494.8,2494.6,0.1724]
[1748188155560,1.27186085,2495.2,2494.6,0.1724]
[1748188155707,3.999,2494.9,2494.6,0.1724]
[1748188156241,4.0,2495.1,2494.7,4.991]
[1748188156642,9.57476498,2495.8,2494.7,4.991]
[1748188156850,0.33321928,2495.7,2494.8,0.1724]
[1748188157710,0.33321928,2495.7,2494.9,4.991]
[1748188157943,0.33321928,2495.7,2495.1,0.1724]
[1748188158301,0.33321928,2495.7,2495.2,4.97]
[1748188158944,4.0,2495.8,2495.3,4.97]
[1748188159262,12.64966498,2495.8,2495.2,4.97]
[1748188159980,0.05009507,2495.7,2495.2,4.97]
[1748188160118,1.362486,2495.7,2495.2,4.97]
[1748188163256,4.9251,2495.8,2495.2,4.97]
[1748188163920,4.0,2495.7,2495.2,4.97]
[1748188164117,4.0,2495.8,2495.2,4.97]
[1748188165463,10.25,2495.9,2495.2,4.97]
[1748188165646,14.25,2495.9,2495.2,4.97]
[1748188165836,16.67260167,2495.9,2495.2,4.97]
[1748188166157,4.0,2495.8,2495.2,4.97]
[1748188166362,12.67260167,2495.9,2495.2,4.97]
[1748188166537,16.67260167,2495.9,2495.2,4.97]
[1748188167068,9.52956498,2496.4,2495.3,8.1724]
[1748188167249,4.0,2496.2,2495.4,0.1724]
[1748188168057,0.40038233,2496.3,2495.4,0.1724]
[1748188168230,4.0,2496.3,2495.4,0.1724]
[1748188168660,10.25,2496.6,2495.4,0.1724]
[1748188168861,0.8999,2496.9,2495.5,8.18267485]
[1748188169035,0.02,2496.9,2495.8,0.1724]
[1748188169236,0.02,2496.9,2496.0,0.1724]
[1748188169428,0.02,2496.9,2496.1,4.97]
[1748188169930,0.02,2496.9,2496.2,0.1724]
[1748188170151,0.422,2496.9,2496.2,0.1724]
[1748188170752,0.422,2496.9,2496.2,8.1724]
[1748188172838,0.02,2496.9,2496.2,8.0]
[1748188173040,0.02,2496.9,2496.3,0.18264839]
[1748188173966,0.02,2496.9,2496.3,0.1724]
[1748188174165,0.02,2496.9,2496.4,0.01024]
[1748188174473,0.02,2496.9,2496.5,0.1724]
[1748188174671,0.02,2496.9,2496.3,0.1976]
[1748188174837,0.02,2496.9,2496.4,0.1976]
[1748188175573,0.02,2496.9,2496.0,0.1976]
[1748188175778,8.64966498,2496.6,2496.0,0.1976]
[1748188175977,0.9515786,2496.5,2496.0,5.1656]
[1748188176477,0.9015,2496.5,2496.0,5.1656]
[1748188176677,4.8995,2496.8,2496.0,5.1656]
[1748188176864,0.9015,2496.8,2496.0,5.1656]
[1748188177069,4.018,2496.9,2496.0,5.1656]
[1748188177265,12.66766498,2496.9,2496.0,5.1656]
[1748188178940,12.66766498,2496.9,2496.0,0.1976]
[1748188179272,1.2667665,2496.8,2496.1,4.968]
[1748188179872,4.018,2496.9,2496.1,4.968]
[1748188180897,12.71773758,2496.9,2496.1,4.968]
[1748188181059,12.66766498,2496.9,2496.1,4.968]
[1748188181254,8.64966498,2496.6,2495.7,0.1976]
[1748188181559,0.8649665,2496.5,2495.8,4.968]
[1748188182157,0.91504564,2496.5,2495.8,4.968]
[1748188182459,0.8649665,2496.5,2495.8,4.968]
[1748188183486,0.878,2496.8,2495.8,4.968]
[1748188184469,0.05007699,2496.7,2495.8,4.968]
[1748188184679,9.19966498,2496.6,2495.8,4.968]
[1748188184873,0.878,2496.5,2495.8,4.968]
[1748188185083,0.878,2496.5,2495.9,4.968]
[1748188185289,0.9527665,2496.4,2495.9,4.968]
[1748188186197,9.19966498,2496.3,2495.5,0.1976]
[1748188186401,3.998,2496.2,2495.6,4.968]
[1748188187866,4.9507665,2496.4,2495.8,0.1976]
[1748188188072,3.998,2496.4,2495.8,0.1976]
[1748188190582,3.998,2496.5,2495.8,0.1976]
[1748188193405,0.9433,2496.4,2496.0,8.0]
[1748188193567,0.49413,2496.3,2496.0,8.0]
[1748188194185,0.49413,2496.3,2495.9,4.951]
[1748188194824,0.9433,2496.4,2495.9,4.951]
[1748188195809,0.8819,2496.7,2496.0,8.0]
[1748188196010,3.998,2496.6,2496.0,8.0]
[1748188196315,3.998,2496.6,2496.1,0.1976]
[1748188196903,3.998,2496.6,2496.2,0.01025805]
[1748188197415,3.998,2496.6,2496.1,0.1976]
[1748188197605,3.998,2496.6,2496.1,1.51246]
[1748188198909,3.998,2496.8,2496.1,1.51246]
[1748188199617,0.02,2496.9,2496.1,1.51246]
[1748188199794,0.02,2496.9,2496.2,0.1976]
[1748188199995,0.02,2496.9,2496.2,1.148846]
[1748188200914,0.02,2496.9,2496.2,0.951246]
[1748188201098,0.02,2496.9,2496.3,0.1976]
[1748188201294,0.02,2496.9,2496.4,0.01024819]
[1748188201700,0.02,2496.9,2496.3,0.1976]
[1748188202387,0.02,2496.9,2496.2,0.951246]
[1748188202388,0.02,2496.9,2496.5,0.1976]
[1748188203419,0.02,2496.9,2496.6,4.951]
[1748188203915,0.02,2496.9,2496.6,6.26586]
[1748188205535,0.02,2496.9,2496.7,8.0]
[1748188206714,0.02,2496.9,2496.8,4.95]
[1748188208034,0.02,2496.9,2496.5,8.0]
[1748188208335,0.02,2496.9,2496.6,4.95]
[1748188210235,0.02,2496.9,2496.4,4.95]
[1748188210236,9.53156498,2496.8,2496.4,4.95]
[1748188210551,9.53156498,2496.8,2495.8,0.152]
[1748188210552,5.0081565,2496.7,2496.3,4.95]
[1748188211409,1.0101565,2496.7,2496.3,4.95]
[1748188211615,3.998,2496.7,2496.3,5.102]
[1748188211914,3.998,2496.7,2496.3,4.95]
[1748188212645,4.8799,2496.8,2496.3,4.95]
[1748188212849,3.998,2496.8,2496.3,4.95]
[1748188213146,0.02,2496.9,2496.5,0.152]
[1748188213447,0.02,2496.9,2496.5,1.46322549]
[1748188216148,0.02,2496.9,2496.0,0.152]
[1748188216149,0.9242,2496.9,2496.0,0.152]
[1748188216348,0.9242,2496.9,2496.1,4.95]
[1748188216850,0.9242,2496.9,2496.0,0.152]
[1748188216851,9.42386498,2496.9,2496.0,0.152]
[1748188217021,4.04807351,2496.8,2496.2,4.95]
[1748188217228,3.998,2496.8,2496.2,4.95]
[1748188217555,5.2627665,2496.8,2496.2,4.95]
[1748188219251,5.64428636,2496.8,2496.2,4.95]
[1748188219661,1.64628636,2496.8,2495.9,0.282]
[1748188219864,3.998,2496.7,2496.3,5.232]
[1748188220550,0.9042,2496.9,2496.3,5.232]
[1748188223175,0.861,2497.1,2496.4,8.0]
[1748188223475,0.05006167,2497.0,2496.4,8.0]
[1748188223671,8.64966498,2497.0,2496.5,4.933]
[1748188223836,0.861,2496.8,2496.2,4.933]
[1748188224029,0.861,2496.8,2496.1,4.933]
[1748188224254,0.4315954,2496.8,2496.1,4.933]
[1748188224442,0.861,2496.6,2496.1,4.933]
[1748188224651,0.861,2496.6,2496.1,5.215]
[1748188225455,0.861,2496.6,2496.1,4.933]
[1748188226868,0.861,2496.6,2496.1,5.4545]
[1748188227587,4.859,2496.9,2496.2,8.282]
[1748188228165,0.861,2496.9,2496.2,8.282]
[1748188228748,3.998,2497.0,2496.2,8.282]
[1748188229089,3.998,2497.0,2496.3,1.37365]
[1748188230595,0.872,2496.8,2495.6,0.282]
[1748188230754,0.872,2496.8,2495.8,8.0]
[1748188230954,0.872,2496.8,2495.9,0.282]
[1748188231755,0.872,2496.8,2496.0,0.01026106]
[1748188231951,0.872,2496.8,2495.9,0.282]
[1748188232151,0.872,2496.8,2495.9,1.6035]
[1748188232492,4.87,2496.8,2495.9,1.6035]
[1748188233099,0.05007258,2496.7,2495.9,1.6035]
[1748188233253,9.52166498,2496.6,2496.0,4.933]
[1748188237206,9.52166498,2496.6,2496.1,4.933]
[1748188239590,0.8244,2496.5,2496.1,4.933]
[1748188239805,0.8244,2496.1,2495.2,8.64]
[1748188239970,0.8244,2495.8,2495.2,9.54525671]
[1748188240172,0.05009399,2495.7,2495.2,8.64]
[1748188240376,0.8244,2495.8,2495.2,8.64]
[1748188241097,0.8244,2495.8,2495.2,13.574]
[1748188241663,0.8244,2495.8,2495.2,8.64]
[1748188241863,0.87449445,2495.8,2495.3,4.934]
[1748188242086,2.26483676,2495.8,2495.3,4.934]
[1748188242402,2.26483676,2495.8,2495.2,8.64]
[1748188242403,0.8244,2495.7,2495.2,8.64]
[1748188242601,0.8244,2495.7,2495.2,13.574]
[1748188242976,3.999,2495.6,2495.2,13.574]
[1748188243578,3.999,2495.6,2495.2,8.64]
[1748188243786,3.999,2495.6,2495.2,13.574]
[1748188244462,3.999,2495.6,2495.2,8.64]
[1748188244702,4.62037423,2495.6,2495.3,4.934]
[1748188245080,4.62037423,2495.6,2495.2,8.64]
[1748188245277,0.8244,2495.7,2495.3,4.935]
[1748188246477,0.8244,2496.1,2495.3,4.935]
[1748188246701,3.999,2496.0,2495.3,4.935]
[1748188248992,3.999,2495.9,2495.3,4.935]
[1748188249181,0.8244,2496.1,2495.3,4.935]
[1748188249386,3.999,2496.0,2495.4,9.4397]
[1748188249993,3.999,2496.0,2495.4,1.3575]
[1748188250192,12.64866498,2496.0,2495.5,4.935]
[1748188250392,12.64866498,2496.0,2495.3,8.0]
[1748188250393,0.7972,2495.9,2495.3,8.0]
[1748188250592,2.1417865,2495.9,2495.5,4.915]
[1748188254029,2.1417865,2495.9,2495.3,8.0]
[1748188254498,2.1417865,2495.9,2495.3,12.915]
[1748188255288,2.1417865,2495.9,2495.3,8.0]
[1748188255597,2.1417865,2495.9,2495.3,12.915]
[1748188256626,0.7972,2495.9,2495.3,12.915]
[1748188256826,3.999,2495.8,2495.3,12.915]
[1748188257022,0.7972,2495.9,2495.3,12.915]
[1748188257204,3.999,2495.7,2495.3,12.915]
[1748188262024,0.7972,2495.9,2495.3,12.915]
[1748188262221,3.999,2495.7,2495.4,2.1555]
[1748188262528,3.999,2495.7,2495.3,12.915]
[1748188263036,3.999,2495.7,2495.2,8.64]
[1748188263037,5.19544243,2495.4,2495.2,8.64]
[1748188263327,0.8687,2495.4,2495.2,8.64]
[1748188263536,3.999,2495.3,2495.2,8.64]
[1748188265069,0.93128873,2496.1,2495.2,8.64]
[1748188265070,0.8687,2496.0,2495.3,8.0]
[1748188265213,3.999,2495.9,2495.4,1.74578897]
[1748188265419,3.999,2495.8,2495.4,1.7355]
[1748188265943,0.47634387,2496.1,2495.5,0.01028826]
[1748188266121,0.47634387,2496.1,2495.4,1.7355]
[1748188266122,3.999,2496.0,2495.4,1.7355]
[1748188266321,3.999,2496.0,2495.5,0.93012898]
[1748188266545,3.999,2495.9,2495.5,0.93012898]
[1748188268018,0.38216239,2496.3,2495.6,0.42103211]
[1748188268261,0.38216239,2496.3,2495.7,0.0715]
[1748188268560,0.38216239,2496.3,2495.9,0.0715]
[1748188268760,0.38216239,2496.3,2496.0,0.64191871]
[1748188269067,3.999,2496.7,2496.0,0.64191871]
[1748188269261,3.999,2496.6,2496.1,0.0715]
[1748188269426,3.999,2496.6,2496.1,0.71341871]
[1748188271149,3.999,2496.6,2496.1,0.0715]
[1748188276051,3.998,2496.8,2496.1,0.0715]
[1748188276252,3.998,2496.8,2496.1,0.71341871]
[1748188276565,0.8696,2497.0,2496.1,0.71341871]
[1748188276765,3.998,2496.9,2496.2,0.71341871]
[1748188277554,0.8696,2497.0,2496.3,4.914]
[1748188277767,3.998,2497.1,2496.4,8.0]
[1748188278071,3.998,2497.1,2496.5,0.0715]
[1748188278726,3.998,2497.1,2496.5,0.08174138]
[1748188278926,3.998,2497.1,2496.5,0.46966138]
[1748188279671,0.8149,2497.4,2496.5,0.46966138]
[1748188279874,0.8149,2497.2,2496.6,4.914]
[1748188281249,5.20496639,2497.4,2496.7,4.892]
[1748188281449,4.8237,2497.4,2496.8,4.9635]
[1748188281662,0.48237,2497.3,2496.9,4.891]
[1748188281862,0.05006142,2497.2,2496.9,4.891]
[1748188282067,0.8257,2497.1,2496.9,4.891]
[1748188282761,0.8257,2497.6,2496.9,4.891]
[1748188282939,3.998,2497.5,2496.9,4.891]
[1748188283334,0.8257,2497.6,2496.9,4.891]
[1748188283572,3.998,2497.5,2496.9,4.891]
[1748188284345,2.17220927,2497.6,2497.0,0.0715]
[1748188284580,3.998,2497.5,2497.0,0.0715]
[1748188288892,3.997,2497.5,2497.0,0.0715]
[1748188289474,0.812,2497.8,2497.0,0.0715]
[1748188289652,3.997,2497.7,2497.0,0.56775]
[1748188290052,4.32154103,2497.5,2497.0,0.56775]
[1748188290659,4.32154103,2497.3,2497.0,0.56775]
[1748188290869,4.32154103,2497.3,2497.0,0.0715]
[1748188292895,4.32154103,2497.5,2497.0,0.0715]
[1748188294072,8.31854103,2497.5,2497.0,8.0715]
[1748188294874,3.997,2497.5,2497.0,8.0715]
[1748188295500,4.32154103,2497.6,2497.0,8.0715]
[1748188295699,8.31854103,2497.6,2497.1,1.12275664]
[1748188298014,4.32154103,2497.4,2497.0,8.0715]
[1748188298508,0.812,2497.8,2497.0,8.0715]
[1748188298807,0.02,2497.9,2497.2,0.0675]
[1748188299112,0.02,2497.9,2497.4,0.55]
[1748188299287,0.02,2497.9,2497.5,0.64191871]
[1748188299482,0.02,2497.9,2497.6,0.0675]
[1748188300089,0.02,2497.9,2497.7,4.89]
[1748188300290,0.02,2497.9,2497.7,5.38575]
[1748188300627,0.02,2497.9,2497.8,8.0675]
[1748188301309,0.02,2497.9,2497.8,0.0675]
[1748188301509,0.02,2497.9,2497.8,4.9575]
[1748188301723,0.02,2497.9,2497.8,12.9575]
[1748188302011,0.02,2497.9,2497.8,14.31744187]
[1748188302328,0.02,2497.9,2497.8,14.95936058]
[1748188303129,0.02,2497.9,2497.8,10.06936058]
[1748188303311,0.02,2497.9,2497.8,9.42744187]
[1748188303709,0.02,2497.9,2497.8,14.31644187]
[1748188305288,0.02,2497.9,2497.8,8.0]
[1748188305523,0.02,2497.9,2497.8,12.889]
[1748188305737,0.02,2497.9,2497.8,4.889]
[1748188307726,0.02,2497.9,2497.8,5.53091871]
[1748188308626,0.02,2497.9,2497.8,4.889]
[1748188309759,0.02,2497.9,2497.8,14.02656871]
[1748188310226,0.02,2497.9,2497.8,14.09406871]
[1748188310427,0.02,2497.9,2497.8,14.64422446]
[1748188310731,0.02,2497.9,2497.8,15.19422446]
[1748188313038,0.02,2497.9,2497.8,23.82522446]
[1748188316518,0.02,2497.9,2497.8,29.93522446]
[1748188317329,0.02,2497.9,2497.8,30.48764881]
[1748188317711,0.02,2498.9,2497.9,8.55]
[1748188317912,0.02,2498.9,2498.1,8.55]
[1748188318220,0.02,2498.9,2498.3,0.55]
[1748188318414,0.02,2498.9,2498.4,0.64191871]
[1748188318614,0.02,2498.9,2498.5,8.0]
[1748188318833,0.02,2498.9,2498.7,0.0475]
[1748188319013,0.02,2498.9,2498.7,0.54315]
[1748188319354,0.02,2498.9,2498.7,1.18506871]
[1748188321050,0.02,2498.9,2498.8,0.64191871]
[1748188321631,0.02,2498.9,2498.8,15.89957446]
[1748188322511,0.02,2498.9,2498.8,15.34941871]
[1748188322732,0.02,2498.9,2498.8,22.28332558]
[1748188324771,0.02,2498.9,2498.8,22.83348133]
[1748188325315,0.02,2499.9,2498.9,9.30015575]
[1748188325526,0.47634387,2500.8,2499.1,8.55]
[1748188325731,0.47634387,2500.8,2499.3,0.55]
[1748188325939,0.47634387,2500.8,2499.1,14.86]
[1748188325940,0.47634387,2500.8,2499.5,0.55]
[1748188326161,0.47634387,2500.8,2499.7,0.55]
[1748188326341,0.47634387,2500.8,2499.9,0.55]
[1748188326540,0.8191,2501.5,2500.1,0.55]
[1748188326749,0.8191,2501.5,2500.3,0.55]
[1748188327165,0.8191,2501.5,2500.4,4.862]
[1748188327366,0.8191,2501.5,2500.4,5.3482]
[1748188327539,0.8191,2501.5,2500.5,0.55]
[1748188327748,0.8191,2501.5,2500.5,1.19191871]
[1748188328632,0.02,2500.9,2500.4,0.4862]
[1748188328869,0.02,2500.9,2500.5,4.862]
[1748188329165,0.02,2500.9,2500.6,8.0]
[1748188330265,0.02,2500.9,2500.8,8.0]
[1748188330567,0.02,2500.9,2500.4,0.64191871]
[1748188330768,0.02,2500.9,2500.8,4.861]
[1748188335703,0.02,2500.9,2500.2,0.64191871]
[1748188335882,0.02,2500.9,2499.9,0.64191871]
[1748188336203,0.02,2500.9,2500.4,8.0]
[1748188336343,0.02,2500.9,2500.1,0.64191871]
[1748188336939,0.02,2500.9,2500.3,8.0]
[1748188337355,0.8114,2500.8,2498.3,6.31]
[1748188337704,0.8114,2500.6,2499.5,5.50191871]
[1748188338045,0.8114,2500.6,2499.6,8.0]
[1748188338247,0.8114,2500.6,2499.7,1.19191871]
[1748188338514,0.8114,2500.8,2499.9,0.55]
[1748188338782,0.8114,2500.8,2500.1,0.55]
[1748188339162,0.8114,2500.8,2500.2,0.64191871]
[1748188339564,0.8114,2500.8,2500.3,4.86]
[1748188340448,0.8114,2500.8,2500.3,5.50191871]
[1748188340951,0.8114,2500.8,2500.4,0.64191871]
[1748188341148,0.02,2500.9,2500.4,0.64191871]
[1748188341372,0.02,2500.9,2500.4,9.19211058]
[1748188342002,0.02,2500.9,2500.4,1.19211058]
[1748188342291,0.02,2500.9,2500.0,0.55]
[1748188342292,0.02,2500.9,2500.6,8.0]
[1748188343183,0.02,2500.9,2500.7,4.839]
[1748188344154,0.02,2500.9,2500.8,8.0]
[1748188347467,0.02,2500.9,2500.8,9.19191871]
[1748188347677,0.02,2500.9,2500.8,10.59501058]